fUSD/lending_fUSD_20240712
["ID","MTS","AMOUNT","RATE_DAILY","PERIOD"]
[331826335,1720773086140,-500.0,0.00014191,2]
[331826336,1720773086149,-500.0,0.00014191,2]
[331826337,1720773086159,-500.0,0.00014191,2]
[331826338,1720773086170,-500.0,0.00014191,2]
[331826339,1720773086182,-513.8,0.00014191,2]
[331826340,1720773086193,-500.0,0.00014191,2]
[331826341,1720773086204,-500.0,0.00014191,2]
[331826342,1720773086214,-500.0,0.00014191,2]
[331826343,1720773086224,-500.0,0.00014191,2]
[331826344,1720773086235,-500.0,0.00014191,2]
[331826345,1720773086244,-927.94,0.00014191,2]
[331826346,1720773086256,-500.0,0.00014191,2]
[331826347,1720773086267,-500.0,0.00014191,2]
[331826348,1720773086276,-500.0,0.00014191,2]
[331826349,1720773086286,-500.0,0.00014191,2]
[331826350,1720773086296,-645.8,0.00014191,2]
[331826351,1720773086306,-500.0,0.00014191,2]
[331826352,1720773086316,-500.0,0.00014191,2]
[331826353,1720773086331,-500.0,0.00014191,2]
[331826354,1720773086341,-500.0,0.00014191,2]
[331826355,1720773086351,-500.0,0.00014191,2]
[331826356,1720773086360,-500.0,0.00014191,2]
[331826357,1720773086370,-500.0,0.00014191,2]
[331826358,1720773086380,-771.86,0.00014191,2]
[331826359,1720773086390,-500.0,0.00014191,2]
[331826360,1720773086399,-500.0,0.00014191,2]
[331826361,1720773086413,-500.0,0.00014191,2]
[331826362,1720773086423,-500.0,0.00014191,2]
[331826363,1720773086432,-500.0,0.00014191,2]
[331826364,1720773086441,-500.0,0.00014191,2]
[331826365,1720773086450,-500.0,0.00014191,2]
[331826366,1720773086459,-503.57,0.00014191,2]
[331826367,1720773086468,-500.0,0.00014191,2]
[331826368,1720773086477,-500.0,0.00014191,2]
[331826369,1720773086486,-500.0,0.00014191,2]
[331826370,1720773086495,-500.0,0.00014191,2]
[331826371,1720773086504,-2780.1,0.00014191,2]
[331826372,1720773086514,-657.51,0.00014191,2]
[331826373,1720773086523,-159.57654745,0.00014191,2]
[331826374,1720773086539,-340.42345255,0.00014191,2]
[331826375,1720773086548,-500.0,0.00014191,2]
[331826376,1720773086557,-500.0,0.00014191,2]
[331826377,1720773086567,-500.0,0.00014191,2]
[331826378,1720773086576,-732.46,0.00014191,2]
[331826379,1720773086585,-500.0,0.00014191,2]
[331826380,1720773086594,-500.0,0.00014191,2]
[331826381,1720773086603,-500.0,0.00014191,2]
[331826382,1720773086612,-500.0,0.00014191,2]
[331826383,1720773086621,-508.06,0.00014191,2]
[331826384,1720773086630,-500.0,0.00014191,2]
[331826385,1720773086641,-500.0,0.00014191,2]
[331826386,1720773086651,-676.56,0.00014191,2]
[331826387,1720773086660,-500.0,0.00014191,2]
[331826388,1720773086670,-500.0,0.00014191,2]
[331826389,1720773086679,-500.0,0.00014191,2]
[331826390,1720773086688,-500.0,0.00014191,2]
[331826391,1720773086698,-500.0,0.00014191,2]
[331826392,1720773086707,-500.0,0.00014191,2]
[331826393,1720773086716,-500.0,0.00014191,2]
[331826395,1720773086726,-500.0,0.00014191,2]
[331826396,1720773086735,-500.0,0.00014191,2]
[331826397,1720773086745,-500.0,0.00014191,2]
[331826398,1720773086754,-835.01,0.00014191,2]
[331826399,1720773086764,-500.0,0.00014191,2]
[331826400,1720773086773,-500.0,0.00014191,2]
[331826401,1720773086783,-500.0,0.00014191,2]
[331826402,1720773086792,-652.34,0.00014191,2]
[331826403,1720773086801,-500.0,0.00014191,2]
[331826404,1720773086811,-500.0,0.00014191,2]
[331826405,1720773086820,-1422.62,0.00014191,2]
[331826406,1720773086829,-500.0,0.00014191,2]
[331826407,1720773086839,-500.0,0.00014191,2]
[331826408,1720773086962,-500.0,0.00014191,2]
[331826409,1720773086972,-500.0,0.00014191,2]
[331826410,1720773086982,-614.56,0.00014191,2]
[331826411,1720773086991,-500.0,0.00014191,2]
[331826412,1720773087000,-867.78,0.00014191,2]
[331826413,1720773087011,-500.0,0.00014191,2]
[331826414,1720773087020,-500.0,0.00014191,2]
[331826415,1720773087029,-516.83658867,0.00014191,2]
[331826416,1720773087041,-117.70341133,0.00014191,2]
[331826417,1720773087050,-678.11,0.00014191,2]
[331826418,1720773087059,-176.85485241,0.00014191,2]
[331826419,1720773087071,-323.14514759,0.00014191,2]
[331826420,1720773087080,-672.48,0.00014191,2]
[331826421,1720773087090,-617.39,0.00014191,2]
[331826422,1720773087099,-500.0,0.00014191,2]
[331826423,1720773087108,-500.0,0.00014191,2]
[331826424,1720773087118,-500.0,0.00014191,2]
[331826425,1720773087127,-1272.49,0.00014191,2]
[331826426,1720773087137,-767.09,0.00014191,2]
[331826427,1720773087146,-500.0,0.00014191,2]
[331826428,1720773087156,-2493.15,0.00014191,2]
[331826429,1720773087165,-500.0,0.00014191,2]
[331826430,1720773087174,-500.0,0.00014191,2]
[331826431,1720773087184,-873.41,0.00014191,2]
[331826432,1720773087193,-500.0,0.00014191,2]
[331826433,1720773087203,-773.22,0.00014191,2]
[331826434,1720773087212,-500.0,0.00014191,2]
[331826435,1720773087222,-500.0,0.00014191,2]
[331826436,1720773087231,-500.0,0.00014191,2]
[331826437,1720773087279,-500.0,0.00014191,2]
[331826438,1720773087289,-665.3,0.00014191,2]
[331826439,1720773087299,-500.0,0.00014191,2]
[331826440,1720773087309,-665.24,0.00014191,2]
[331826441,1720773087319,-500.0,0.00014191,2]
[331826442,1720773087332,-500.0,0.00014191,2]
[331826443,1720773087341,-516.63,0.00014191,2]
[331826444,1720773087351,-500.0,0.00014191,2]
[331826445,1720773087360,-275.5,0.00014191,2]
[331826446,1720773087370,-500.0,0.00014191,2]
[331826447,1720773087380,-500.0,0.00014191,2]
[331826448,1720773087391,-976.52,0.00014191,2]
[331826449,1720773087403,-500.0,0.00014191,2]
[331826450,1720773087413,-645.23,0.00014191,2]
[331826451,1720773087422,-500.0,0.00014191,2]
[331826452,1720773087432,-300.0,0.00014192,2]
[331826453,1720773087441,-454.297294,0.00014223,2]
[331826454,1720773087450,-692.333231,0.00014223,2]
[331826455,1720773087460,-918.966057,0.00014223,2]
[331826456,1720773087469,-1936.307246,0.00014223,2]
[331826457,1720773087479,-1909.273974,0.00014223,2]
[331826458,1720773087488,-1221.680232,0.00014223,2]
[331826459,1720773087498,-163.717022,0.00014223,2]
[331826460,1720773087507,-1909.273975,0.00014223,2]
[331826461,1720773087517,-1221.680232,0.00014223,2]
[331826462,1720773087527,-2181.444762,0.00014223,2]
[331826463,1720773087537,-500.0,0.00014237,2]
[331826464,1720773087546,-668.97454737,0.00014238,2]
[331826465,1720773087556,-500.0,0.00014245,2]
[331826466,1720773087565,-395.22,0.00014245,2]
[331826467,1720773087576,-500.0,0.00014245,2]
[331826468,1720773087586,-500.0,0.00014245,2]
[331826469,1720773087595,-380.73374734,0.00014245,2]
[331826470,1720773087605,-500.0,0.00014245,2]
[331826471,1720773087614,-500.0,0.00014245,2]
[331826472,1720773087624,-500.0,0.00014245,2]
[331826473,1720773087634,-561.67,0.00014245,2]
[331826474,1720773087643,-500.0,0.00014245,2]
[331826475,1720773087653,-500.0,0.00014245,2]
[331826476,1720773087662,-500.0,0.00014245,2]
[331826477,1720773087672,-500.0,0.00014245,2]
[331826478,1720773087682,-500.0,0.00014245,2]
[331826479,1720773087692,-192.83971275,0.00014245,2]
[331826480,1720773087702,-500.0,0.00014245,2]
[331826481,1720773087712,-500.0,0.00014245,2]
[331826482,1720773087721,-500.0,0.00014245,2]
[331826483,1720773087732,-500.0,0.00014245,2]
[331826484,1720773087743,-169.4,0.00014245,2]
[331826485,1720773087753,-500.0,0.00014245,2]
[331826486,1720773087763,-500.0,0.00014245,2]
[331826487,1720773087773,-837.8,0.00014245,2]
[331826488,1720773087783,-500.0,0.00014245,2]
[331826489,1720773087793,-500.0,0.00014245,2]
[331826490,1720773087802,-500.0,0.00014245,2]
[331826491,1720773087812,-500.0,0.00014245,2]
[331826492,1720773087822,-174.04,0.00014245,2]
[331826493,1720773087831,-500.0,0.00014245,2]
[331826494,1720773087841,-489.58,0.00014245,2]
[331826495,1720773087850,-500.0,0.00014245,2]
[331826496,1720773087860,-500.0,0.00014245,2]
[331826497,1720773087869,-300.0,0.00014245,2]
[331826498,1720773087878,-300.0,0.00014245,2]
[331826499,1720773087889,-503.06,0.00014246,2]
[331826500,1720773087899,-655.72,0.00014246,2]
[331826501,1720773087909,-500.0,0.00014246,2]
[331826502,1720773087919,-500.0,0.00014246,2]
[331826503,1720773087929,-500.0,0.00014246,2]
[331826504,1720773087939,-195.11,0.00014246,2]
[331826505,1720773087948,-500.0,0.00014246,2]
[331826506,1720773087958,-589.99,0.00014246,2]
[331826507,1720773087967,-500.0,0.00014246,2]
[331826508,1720773087977,-500.0,0.00014246,2]
[331826509,1720773087986,-509.03,0.00014246,2]
[331826510,1720773087996,-500.0,0.00014246,2]
[331826511,1720773088006,-500.0,0.00014246,2]
[331826512,1720773088016,-616.26,0.00014246,2]
[331826513,1720773088026,-500.0,0.00014246,2]
[331826514,1720773088035,-339.43,0.00014246,2]
[331826515,1720773088045,-500.0,0.00014246,2]
[331826516,1720773088055,-500.0,0.00014246,2]
[331826517,1720773088065,-500.0,0.00014246,2]
[331826518,1720773088076,-500.0,0.00014246,2]
[331826519,1720773088085,-500.0,0.00014246,2]
[331826520,1720773088094,-500.0,0.00014246,2]
[331826521,1720773088104,-500.0,0.00014246,2]
[331826522,1720773088114,-317.515886,0.00014246,2]
[331826523,1720773088124,-500.0,0.00014246,2]
[331826524,1720773088135,-500.0,0.00014246,2]
[331826525,1720773088145,-500.0,0.00014246,2]
[331826526,1720773088155,-268.51,0.00014246,2]
[331826527,1720773088164,-267.2,0.00014246,2]
[331826528,1720773088174,-500.0,0.00014246,2]
[331826529,1720773088184,-500.0,0.00014246,2]
[331826530,1720773088194,-500.0,0.00014246,2]
[331826531,1720773088203,-535.71,0.00014246,2]
[331826532,1720773088214,-500.0,0.00014246,2]
[331826533,1720773088223,-500.0,0.00014246,2]
[331826534,1720773088233,-642.92,0.00014246,2]
[331826535,1720773088242,-662.01,0.00014246,2]
[331826536,1720773088251,-565.48,0.00014246,2]
[331826537,1720773088260,-500.0,0.00014246,2]
[331826538,1720773088270,-500.0,0.00014246,2]
[331826539,1720773088279,-221.39,0.00014246,2]
[331826540,1720773088289,-500.0,0.00014246,2]
[331826541,1720773088299,-500.0,0.00014246,2]
[331826542,1720773088308,-275.19,0.00014246,2]
[331826543,1720773088318,-500.0,0.00014246,2]
[331826544,1720773088331,-500.0,0.00014246,2]
[331826545,1720773088341,-500.0,0.00014246,2]
[331826546,1720773088351,-500.0,0.00014246,2]
[331826547,1720773088360,-500.0,0.00014246,2]
[331826548,1720773088370,-565.56,0.00014246,2]
[331826549,1720773088379,-500.0,0.00014246,2]
[331826550,1720773088390,-500.0,0.00014246,2]
[331826551,1720773088401,-220.06,0.00014246,2]
[331826552,1720773088411,-500.0,0.00014246,2]
[331826553,1720773088420,-500.0,0.00014246,2]
[331826554,1720773088430,-513.8,0.00014246,2]
[331826555,1720773088439,-500.0,0.00014246,2]
[331826556,1720773088448,-500.0,0.00014246,2]
[331826557,1720773088458,-500.0,0.00014246,2]
[331826558,1720773088468,-500.0,0.00014246,2]
[331826559,1720773088478,-500.0,0.00014246,2]
[331826560,1720773088487,-927.94,0.00014246,2]
[331826561,1720773088496,-500.0,0.00014246,2]
[331826562,1720773088505,-500.0,0.00014246,2]
[331826563,1720773088514,-500.0,0.00014246,2]
[331826564,1720773088523,-500.0,0.00014246,2]
[331826565,1720773088533,-645.8,0.00014246,2]
[331826566,1720773088542,-500.0,0.00014246,2]
[331826567,1720773088551,-500.0,0.00014246,2]
[331826568,1720773088561,-500.0,0.00014246,2]
[331826569,1720773088571,-500.0,0.00014246,2]
[331826570,1720773088582,-500.0,0.00014246,2]
[331826571,1720773088591,-500.0,0.00014246,2]
[331826572,1720773088600,-560.95,0.00014246,2]
[331826573,1720773088609,-771.86,0.00014246,2]
[331826574,1720773088619,-500.0,0.00014246,2]
[331826575,1720773088628,-500.0,0.00014246,2]
[331826576,1720773088639,-500.0,0.00014246,2]
[331826577,1720773088649,-500.0,0.00014246,2]
[331826578,1720773088658,-500.0,0.00014246,2]
[331826579,1720773088668,-500.0,0.00014246,2]
[331826580,1720773088677,-360.59866681,0.00014246,2]
[331826581,1720773088687,-503.57,0.00014246,2]
[331826582,1720773088696,-500.0,0.00014246,2]
[331826583,1720773088706,-500.0,0.00014246,2]
[331826584,1720773088715,-500.0,0.00014246,2]
[331826585,1720773088724,-500.0,0.00014246,2]
[331826586,1720773088733,-2780.1,0.00014246,2]
[331826587,1720773088743,-657.51,0.00014246,2]
[331826588,1720773088752,-500.0,0.00014246,2]
[331826589,1720773088762,-379.16,0.00014246,2]
[331826590,1720773088771,-500.0,0.00014246,2]
[331826591,1720773088780,-500.0,0.00014246,2]
[331826592,1720773088790,-732.46,0.00014246,2]
[331826593,1720773088798,-500.0,0.00014246,2]
[331826594,1720773088807,-500.0,0.00014246,2]
[331826595,1720773088817,-532.53285832,0.00014246,2]
[331826596,1720773088826,-500.0,0.00014246,2]
[331826597,1720773088836,-508.06,0.00014246,2]
[331826598,1720773088845,-500.0,0.00014246,2]
[331826599,1720773088855,-500.0,0.00014246,2]
[331826600,1720773088864,-676.56,0.00014246,2]
[331826601,1720773088874,-436.26,0.00014246,2]
[331826602,1720773088883,-500.0,0.00014246,2]
[331826603,1720773088893,-500.0,0.00014246,2]
[331826604,1720773088903,-333.95,0.00014246,2]
[331826605,1720773088912,-500.0,0.00014246,2]
[331826606,1720773088922,-500.0,0.00014246,2]
[331826607,1720773088932,-500.0,0.00014246,2]
[331826608,1720773088942,-500.0,0.00014246,2]
[331826609,1720773088952,-500.0,0.00014246,2]
[331826610,1720773088962,-500.0,0.00014246,2]
[331826611,1720773088973,-835.01,0.00014246,2]
[331826612,1720773088982,-500.0,0.00014246,2]
[331826613,1720773088993,-290.46,0.00014246,2]
[331826614,1720773089003,-500.0,0.00014246,2]
[331826615,1720773089013,-652.34,0.00014246,2]
[331826616,1720773089023,-500.0,0.00014246,2]
[331826617,1720773089033,-246.9,0.00014246,2]
[331826618,1720773089043,-500.0,0.00014246,2]
[331826619,1720773089053,-500.0,0.00014246,2]
[331826620,1720773089063,-418.51,0.00014246,2]
[331826621,1720773089073,-1422.62,0.00014246,2]
[331826622,1720773089083,-500.0,0.00014246,2]
[331826623,1720773089093,-614.56,0.00014246,2]
[331826624,1720773089104,-867.78,0.00014246,2]
[331826625,1720773089115,-500.0,0.00014246,2]
[331826626,1720773089126,-500.0,0.00014246,2]
[331826627,1720773089135,-500.0,0.00014246,2]
[331826628,1720773089255,-634.54,0.00014246,2]
[331826629,1720773089265,-678.11,0.00014246,2]
[331826630,1720773089275,-500.0,0.00014246,2]
[331826631,1720773089284,-672.48,0.00014246,2]
[331826632,1720773089294,-617.39,0.00014246,2]
[331826633,1720773089303,-500.0,0.00014246,2]
[331826634,1720773089313,-500.0,0.00014246,2]
[331826635,1720773089327,-500.0,0.00014246,2]
[331826636,1720773089337,-1272.49,0.00014246,2]
[331826637,1720773089347,-767.09,0.00014246,2]
[331826638,1720773089357,-500.0,0.00014246,2]
[331826639,1720773089369,-2493.15,0.00014246,2]
[331826640,1720773089379,-500.0,0.00014246,2]
[331826641,1720773089389,-500.0,0.00014246,2]
[331826642,1720773089400,-873.41,0.00014246,2]
[331826643,1720773089410,-500.0,0.00014246,2]
[331826644,1720773089419,-773.22,0.00014246,2]
[331826645,1720773089429,-500.0,0.00014246,2]
[331826646,1720773089438,-500.0,0.00014246,2]
[331826647,1720773089448,-500.0,0.00014246,2]
[331826648,1720773089457,-500.0,0.00014246,2]
[331826649,1720773089467,-665.3,0.00014246,2]
[331826650,1720773089477,-500.0,0.00014246,2]
[331826651,1720773089486,-665.24,0.00014246,2]
[331826652,1720773089496,-500.0,0.00014246,2]
[331826653,1720773089506,-500.0,0.00014246,2]
[331826654,1720773089515,-516.63,0.00014246,2]
[331826655,1720773089525,-579.47,0.00014246,2]
[331826656,1720773089535,-500.0,0.00014246,2]
[331826657,1720773089544,-500.0,0.00014246,2]
[331826658,1720773089554,-976.52,0.00014246,2]
[331826659,1720773089563,-645.23,0.00014246,2]
[331826660,1720773089573,-500.0,0.00014246,2]
[331826661,1720773089583,-500.0,0.0001429,2]
[331826662,1720773089592,-288.68,0.00014292,2]
[331826663,1720773089602,-500.0,0.000143,2]
[331826664,1720773089611,-467.73,0.000143,2]
[331826665,1720773089621,-500.0,0.000143,2]
[331826666,1720773089630,-500.0,0.000143,2]
[331826667,1720773089641,-500.0,0.000143,2]
[331826668,1720773089650,-500.0,0.000143,2]
[331826669,1720773089659,-500.0,0.000143,2]
[331826670,1720773089669,-500.0,0.000143,2]
[331826671,1720773089679,-500.0,0.000143,2]
[331826672,1720773089688,-300.0,0.000143,2]
[331826673,1720773089698,-300.0,0.000143,2]
[331826674,1720773089707,-500.0,0.000143,2]
[331826675,1720773089717,-151.0,0.000143,2]
[331826676,1720773089727,-500.0,0.000143,2]
[331826677,1720773089737,-500.0,0.000143,2]
[331826678,1720773089747,-500.0,0.000143,2]
[331826679,1720773089756,-500.0,0.000143,2]
[331826680,1720773089766,-500.0,0.000143,2]
[331826681,1720773089775,-500.0,0.000143,2]
[331826682,1720773089784,-500.0,0.000143,2]
[331826683,1720773089793,-837.8,0.000143,2]
[331826684,1720773089803,-500.0,0.000143,2]
[331826685,1720773089812,-500.0,0.000143,2]
[331826686,1720773089822,-358.08,0.000143,2]
[331826687,1720773089831,-500.0,0.000143,2]
[331826688,1720773089841,-500.0,0.000143,2]
[331826689,1720773089851,-500.0,0.000143,2]
[331826690,1720773089860,-503.06,0.00014301,2]
[331826691,1720773089869,-655.72,0.00014301,2]
[331826692,1720773089878,-500.0,0.00014301,2]
[331826693,1720773089890,-297.76,0.00014301,2]
[331826694,1720773089900,-500.0,0.00014301,2]
[331826695,1720773089909,-500.0,0.00014301,2]
[331826696,1720773089922,-589.99,0.00014301,2]
[331826697,1720773089931,-500.0,0.00014301,2]
[331826698,1720773089941,-500.0,0.00014301,2]
[331826699,1720773089950,-509.03,0.00014301,2]
[331826700,1720773089959,-500.0,0.00014301,2]
[331826701,1720773089970,-500.0,0.00014301,2]
[331826702,1720773089980,-616.26,0.00014301,2]
[331826703,1720773089990,-151.0,0.00014301,2]
[331826704,1720773089999,-500.0,0.00014301,2]
[331826705,1720773090008,-500.0,0.00014301,2]
[331826706,1720773090018,-500.0,0.00014301,2]
[331826707,1720773090027,-500.0,0.00014301,2]
[331826708,1720773090037,-500.0,0.00014301,2]
[331826709,1720773090046,-623.53,0.00014301,2]
[331826710,1720773090056,-500.0,0.00014301,2]
[331826711,1720773090065,-500.0,0.00014301,2]
[331826712,1720773090075,-500.0,0.00014301,2]
[331826713,1720773090084,-500.0,0.00014301,2]
[331826714,1720773090094,-500.0,0.00014301,2]
[331826715,1720773090103,-500.0,0.00014301,2]
[331826716,1720773090112,-440.28,0.00014301,2]
[331826717,1720773090121,-500.0,0.00014301,2]
[331826718,1720773090131,-535.71,0.00014301,2]
[331826719,1720773090141,-500.0,0.00014301,2]
[331826720,1720773090151,-500.0,0.00014301,2]
[331826721,1720773090160,-642.92,0.00014301,2]
[331826722,1720773090170,-662.01,0.00014301,2]
[331826723,1720773090179,-565.48,0.00014301,2]
[331826724,1720773090189,-500.0,0.00014301,2]
[331826725,1720773090198,-500.0,0.00014301,2]
[331826726,1720773090208,-221.39,0.00014301,2]
[331826727,1720773090218,-500.0,0.00014301,2]
[331826728,1720773090228,-560.39,0.00014301,2]
[331826729,1720773090237,-500.0,0.00014301,2]
[331826730,1720773090247,-500.0,0.00014301,2]
[331826731,1720773090256,-500.0,0.00014301,2]
[331826732,1720773090265,-317.5,0.00014301,2]
[331826733,1720773090275,-202.95,0.00014301,2]
[331826734,1720773090284,-565.56,0.00014301,2]
[331826735,1720773090294,-500.0,0.00014301,2]
[331826736,1720773090303,-500.0,0.00014301,2]
[331826737,1720773090312,-188.39,0.00014301,2]
[331826738,1720773090324,-500.0,0.00014301,2]
[331826739,1720773090334,-513.8,0.00014301,2]
[331826740,1720773090343,-500.0,0.00014301,2]
[331826741,1720773090352,-500.0,0.00014301,2]
[331826742,1720773090361,-500.0,0.00014301,2]
[331826743,1720773090371,-500.0,0.00014301,2]
[331826744,1720773090381,-500.0,0.00014301,2]
[331826745,1720773090391,-927.94,0.00014301,2]
[331826746,1720773090401,-500.0,0.00014301,2]
[331826747,1720773090409,-500.0,0.00014301,2]
[331826748,1720773090419,-500.0,0.00014301,2]
[331826749,1720773090429,-500.0,0.00014301,2]
[331826750,1720773090439,-645.8,0.00014301,2]
[331826751,1720773090448,-500.0,0.00014301,2]
[331826752,1720773090458,-500.0,0.00014301,2]
[331826753,1720773090467,-500.0,0.00014301,2]
[331826754,1720773090477,-500.0,0.00014301,2]
[331826755,1720773090486,-500.0,0.00014301,2]
[331826756,1720773090496,-226.4,0.00014301,2]
[331826757,1720773090505,-771.86,0.00014301,2]
[331826758,1720773090515,-500.0,0.00014301,2]
[331826759,1720773090524,-500.0,0.00014301,2]
[331826760,1720773090533,-500.0,0.00014301,2]
[331826761,1720773090543,-500.0,0.00014301,2]
[331826762,1720773090552,-500.0,0.00014301,2]
[331826763,1720773090562,-500.0,0.00014301,2]
[331826764,1720773090571,-503.57,0.00014301,2]
[331826765,1720773090581,-500.0,0.00014301,2]
[331826766,1720773090590,-500.0,0.00014301,2]
[331826767,1720773090600,-500.0,0.00014301,2]
[331826768,1720773090610,-500.0,0.00014301,2]
[331826769,1720773090619,-2780.1,0.00014301,2]
[331826770,1720773090629,-657.51,0.00014301,2]
[331826771,1720773090639,-399.79,0.00014301,2]
[331826772,1720773090648,-500.0,0.00014301,2]
[331826773,1720773090657,-449.53223184,0.00014301,2]
[331826774,1720773090666,-732.46,0.00014301,2]
[331826775,1720773090676,-500.0,0.00014301,2]
[331826776,1720773090685,-500.0,0.00014301,2]
[331826777,1720773090695,-500.0,0.00014301,2]
[331826778,1720773090705,-508.06,0.00014301,2]
[331826779,1720773090714,-500.0,0.00014301,2]
[331826780,1720773090724,-500.0,0.00014301,2]
[331826781,1720773090733,-676.56,0.00014301,2]
[331826782,1720773090743,-500.0,0.00014301,2]
[331826783,1720773090752,-500.0,0.00014301,2]
[331826784,1720773090762,-500.0,0.00014301,2]
[331826785,1720773090772,-500.0,0.00014301,2]
[331826786,1720773090782,-500.0,0.00014301,2]
[331826787,1720773090791,-500.0,0.00014301,2]
[331826788,1720773090801,-445.72,0.00014301,2]
[331826789,1720773090811,-500.0,0.00014301,2]
[331826790,1720773090821,-835.01,0.00014301,2]
[331826791,1720773090830,-500.0,0.00014301,2]
[331826792,1720773090840,-500.0,0.00014301,2]
[331826793,1720773090850,-652.34,0.00014301,2]
[331826794,1720773090860,-500.0,0.00014301,2]
[331826795,1720773090870,-500.0,0.00014301,2]
[331826796,1720773090880,-500.0,0.00014301,2]
[331826797,1720773090890,-1422.62,0.00014301,2]
[331826798,1720773090901,-500.0,0.00014301,2]
[331826799,1720773090911,-614.56,0.00014301,2]
[331826800,1720773090921,-867.78,0.00014301,2]
[331826801,1720773090931,-500.0,0.00014301,2]
[331826802,1720773090941,-500.0,0.00014301,2]
[331826803,1720773090950,-500.0,0.00014301,2]
[331826804,1720773090960,-634.54,0.00014301,2]
[331826805,1720773090970,-678.11,0.00014301,2]
[331826806,1720773090979,-500.0,0.00014301,2]
[331826807,1720773090989,-672.48,0.00014301,2]
[331826808,1720773090999,-617.39,0.00014301,2]
[331826809,1720773091008,-500.0,0.00014301,2]
[331826810,1720773091018,-500.0,0.00014301,2]
[331826811,1720773091028,-500.0,0.00014301,2]
[331826812,1720773091038,-1272.49,0.00014301,2]
[331826813,1720773091048,-767.09,0.00014301,2]
[331826814,1720773091057,-500.0,0.00014301,2]
[331826815,1720773091067,-2493.15,0.00014301,2]
[331826816,1720773091076,-500.0,0.00014301,2]
[331826817,1720773091087,-500.0,0.00014301,2]
[331826818,1720773091097,-873.41,0.00014301,2]
[331826819,1720773091106,-500.0,0.00014301,2]
[331826821,1720773091115,-773.22,0.00014301,2]
[331826822,1720773091125,-158.58,0.00014301,2]
[331826823,1720773091134,-500.0,0.00014301,2]
[331826824,1720773091144,-500.0,0.00014301,2]
[331826825,1720773091154,-500.0,0.00014301,2]
[331826826,1720773091164,-665.3,0.00014301,2]
[331826827,1720773091174,-500.0,0.00014301,2]
[331826828,1720773091183,-665.24,0.00014301,2]
[331826829,1720773091194,-500.0,0.00014301,2]
[331826830,1720773091203,-516.63,0.00014301,2]
[331826831,1720773091213,-500.0,0.00014301,2]
[331826832,1720773091223,-500.0,0.00014301,2]
[331826833,1720773091340,-639.74762485,0.00014301,2]
[331826834,1720773091350,-976.52,0.00014301,2]
[331826835,1720773091360,-645.23,0.00014301,2]
[331826836,1720773091370,-500.0,0.00014301,2]